bitfinex-derivatives/quotes_SOLF0:USTF0_20260215
["timestamp","ask_amount","ask_price","bid_price","bid_amount"]
[1771165666821,10.3231,87.24,87.192,3.57262957]
[1771165667320,14.13380607,87.24,87.192,3.57262957]
[1771165667620,3.81070607,87.239,87.192,3.57262957]
[1771165667821,3.81070607,87.239,87.194,10.3284]
[1771165668418,14.13410607,87.238,87.194,10.3284]
[1771165668921,3.81070607,87.237,87.194,10.3284]
[1771165669318,3.81070607,87.237,87.194,13.90102957]
[1771165670622,3.81070607,87.235,87.186,10.3293]
[1771165671022,3.81070607,87.235,87.187,3.57262957]
[1771165671821,3.81070607,87.235,87.189,13.90162957]
[1771165671822,10.3238,87.234,87.189,13.90162957]
[1771165672015,14.13450607,87.234,87.19,3.57262957]
[1771165672722,10.3228,87.243,87.194,3.57262957]
[1771165673120,3.81070607,87.242,87.194,3.57262957]
[1771165674823,10.3232,87.239,87.194,3.57262957]
[1771165675523,14.13390607,87.239,87.194,3.57262957]
[1771165676817,3.81070607,87.238,87.194,3.57262957]
[1771165678124,10.3232,87.239,87.194,3.57262957]
[1771165679126,3.81070607,87.231,87.185,10.3295]
[1771165679529,3.81070607,87.231,87.186,3.57262957]
[1771165681229,3.81070607,87.231,87.188,3.57262957]
[1771165681725,3.81070607,87.226,87.174,10.3308]
[1771165682432,10.3249,87.224,87.176,10.3306]
[1771165682829,10.3249,87.224,87.177,3.57262957]
[1771165683024,3.81070607,87.226,87.177,3.57262957]
[1771165683230,10.3234,87.237,87.185,3.57262957]
[1771165684828,10.3234,87.237,87.19,3.57262957]
[1771165685627,3.81070607,87.24,87.195,3.57262957]
[1771165686837,3.81070607,87.24,87.199,3.57262957]
[1771165687235,10.3237,87.235,87.186,3.57262957]
[1771165687535,3.81070607,87.234,87.186,3.57262957]
[1771165688838,3.81070607,87.229,87.186,3.57262957]
[1771165689040,3.81070607,87.247,87.188,3.57262957]
[1771165690740,3.81070607,87.238,87.188,3.57262957]
[1771165691743,3.81070607,87.238,87.189,13.90162957]
[1771165691941,3.81070607,87.234,87.189,3.57262957]
[1771165692137,3.81070607,87.234,87.174,3.57262957]
[1771165693737,3.71572545,87.224,87.175,14.2205103]
[1771165693942,3.71572545,87.224,87.176,3.8898103]
[1771165696838,3.71572545,87.224,87.175,10.3307]
[1771165696839,3.71572545,87.222,87.167,10.55296971]
[1771165697044,3.71572545,87.222,87.164,3.8898103]
[1771165697640,3.71572545,87.222,87.157,10.55296971]
[1771165697641,3.71572545,87.222,87.166,3.8898103]
[1771165698847,3.71572545,87.219,87.166,3.8898103]
[1771165699445,10.3257,87.218,87.169,3.8898103]
[1771165700640,10.3259,87.216,87.171,10.3312]
[1771165700949,14.04162545,87.216,87.171,10.3312]
[1771165701449,14.04162545,87.216,87.171,14.2210103]
[1771165702148,3.71572545,87.215,87.171,14.2210103]
[1771165702550,10.3265,87.211,87.171,3.8898103]
[1771165706755,3.71572545,87.211,87.171,3.8898103]
[1771165710661,10.3267,87.21,87.171,3.8898103]
[1771165710866,3.71572545,87.209,87.171,3.8898103]
[1771165718072,3.71572545,87.209,87.173,3.8898103]
[1771165719877,3.71572545,87.209,87.174,10.3307]
[1771165722375,3.71572545,87.232,87.182,3.8898103]
[1771165722783,28.07314301,87.299,87.147,20.668]
[1771165722784,3.71572545,87.253,87.184,3.8898103]
[1771165723579,3.71572545,87.253,87.193,3.84098966]
[1771165723772,3.82365395,87.251,87.2,3.84098966]
[1771165724472,3.82365395,87.246,87.191,10.3288]
[1771165724978,3.82365395,87.246,87.192,3.84098966]
[1771165725781,3.82365395,87.243,87.195,10.3283]
[1771165726676,3.82365395,87.243,87.195,14.16928966]
[1771165726873,3.82365395,87.256,87.2,3.84098966]
[1771165727375,10.3222,87.247,87.201,10.3276]
[1771165727584,3.82365395,87.246,87.201,14.16858966]
[1771165728077,3.82365395,87.246,87.202,3.84098966]
[1771165729075,3.82365395,87.246,87.203,10.3274]
[1771165730181,3.82365395,87.246,87.204,3.84098966]
[1771165731077,10.3212,87.256,87.207,3.84098966]
[1771165731285,10.32,87.266,87.207,3.84098966]
[1771165731484,3.82365395,87.271,87.207,3.84098966]
[1771165731680,3.82365395,87.271,87.22,3.84098966]
[1771165731879,3.82365395,87.284,87.22,3.84098966]
[1771165732880,3.82365395,87.284,87.241,3.84098966]
[1771165733886,3.82365395,87.284,87.244,3.84098966]
[1771165735690,3.82365395,87.284,87.236,10.3235]
[1771165740494,3.82365395,87.284,87.236,14.16448966]
[1771165740790,3.82365395,87.284,87.184,91.48]
[1771165740791,3.82365395,87.297,87.242,3.84098966]
[1771165741788,3.82365395,87.297,87.252,3.84098966]
[1771165742289,3.82365395,87.309,87.252,3.84098966]
[1771165742996,3.82365395,87.307,87.255,10.3212]
[1771165743394,3.82365395,87.307,87.239,3.84098966]
[1771165743898,3.82365395,87.289,87.239,3.84098966]
[1771165744895,3.82365395,87.284,87.239,3.84098966]
[1771165748690,3.82365395,87.284,87.241,3.84098966]
[1771165749591,3.82365395,87.307,87.244,3.84098966]
[1771165750495,10.3155,87.304,87.245,10.3224]
[1771165750701,3.82365395,87.303,87.246,3.84098966]
[1771165751795,17.0,87.29,87.246,3.84098966]
[1771165756603,17.0,87.29,87.248,3.57611618]
[1771165757602,3.94323946,87.289,87.248,3.57611618]
[1771165762208,17.0,87.29,87.248,3.57611618]
[1771165762798,17.0,87.29,87.252,3.57611618]
[1771165763705,17.0,87.29,87.254,10.3213]
[1771165764504,20.94323946,87.29,87.254,10.3213]
[1771165764704,3.94323946,87.289,87.246,10.3222]
[1771165765305,3.94323946,87.289,87.24,3.57611618]
[1771165766704,3.94323946,87.289,87.253,10.3215]
[1771165767406,3.94323946,87.289,87.242,13.89881618]
[1771165768809,3.94323946,87.284,87.242,13.89881618]
[1771165769306,3.94323946,87.284,87.242,3.57611618]
[1771165769608,3.94323946,87.282,87.225,3.57611618]
[1771165770810,3.94323946,87.274,87.225,3.57611618]
[1771165771712,17.0,87.29,87.225,3.57611618]
[1771165771713,10.3203,87.263,87.225,3.57611618]
[1771165771908,3.94323946,87.262,87.225,3.57611618]
[1771165772110,3.94323946,87.262,87.205,3.57611618]
[1771165773611,10.3215,87.253,87.208,3.57611618]
[1771165774512,10.3226,87.244,87.208,3.57611618]
[1771165774708,3.94323946,87.262,87.208,3.57611618]
[1771165775804,10.3216,87.253,87.208,3.57611618]
[1771165777307,14.26483946,87.253,87.208,3.57611618]
[1771165782517,3.94323946,87.252,87.208,3.57611618]
[1771165785512,10.322,87.249,87.208,3.57611618]
[1771165785712,3.57696323,87.248,87.208,3.57611618]
[1771165789325,3.57696323,87.242,87.208,3.57611618]
[1771165789522,3.57696323,87.242,87.191,3.85558428]
[1771165790116,10.3239,87.233,87.191,3.85558428]
[1771165791414,13.90086323,87.233,87.191,3.85558428]
[1771165792719,3.57696323,87.232,87.191,3.85558428]
[1771165793420,10.3227,87.244,87.194,3.85558428]
[1771165793927,3.57696323,87.243,87.194,3.85558428]
[1771165797722,3.57696323,87.254,87.196,3.85558428]
[1771165797922,10.63404281,87.289,87.196,3.85558428]
[1771165797923,3.57696323,87.289,87.196,3.85558428]
[1771165798225,3.57696323,87.289,87.227,3.85558428]
[1771165799217,3.57696323,87.292,87.219,3.85558428]
[1771165800221,3.57696323,87.29,87.232,3.85558428]
[1771165800630,3.57696323,87.288,87.235,3.85558428]
[1771165801728,3.57696323,87.288,87.201,14.1811319]
[1771165801729,3.57696323,87.285,87.209,3.85558428]
[1771165801927,3.57696323,87.285,87.185,10.67035069]
[1771165802130,3.57696323,87.263,87.167,3.85558428]
[1771165802323,3.57696323,87.227,87.167,14.18718428]
[1771165802523,3.57696323,87.227,87.167,3.85558428]
[1771165802722,190.58,87.262,87.167,3.85558428]
[1771165802723,3.57696323,87.219,87.168,10.3315]
[1771165802922,3.57696323,87.219,87.169,3.85558428]
[1771165803523,3.57696323,87.254,87.171,3.85558428]
[1771165803930,3.57696323,87.254,87.173,3.85558428]
[1771165804730,3.57696323,87.249,87.19,3.85558428]
[1771165805826,3.57696323,87.249,87.193,10.3286]
[1771165807033,3.57696323,87.249,87.193,14.18418428]
[1771165807626,3.57696323,87.246,87.184,10.3297]
[1771165807920,3.57696323,87.246,87.185,3.85558428]
[1771165808834,3.57696323,87.243,87.186,10.3294]
[1771165811833,3.57696323,87.236,87.185,3.85558428]
[1771165812729,3.57696323,87.25,87.197,3.85558428]
[1771165813826,3.57696323,87.25,87.2,3.90924459]
[1771165814630,3.91280337,87.274,87.214,3.90924459]
[1771165815730,3.91280337,87.289,87.214,3.90924459]
[1771165816530,3.91280337,87.289,87.238,3.90924459]
[1771165817229,3.91280337,87.289,87.245,10.3224]
[1771165817537,3.91280337,87.289,87.245,14.23164459]
[1771165818236,3.91280337,87.313,87.255,10.3212]
[1771165818533,3.91280337,87.313,87.21,14.1811319]
[1771165818534,3.91280337,87.351,87.256,3.90924459]
[1771165818931,3.91280337,87.321,87.262,3.90924459]
[1771165820842,3.91280337,87.321,87.271,10.3193]
[1771165821433,3.91280337,87.321,87.274,3.90924459]
[1771165822037,3.91280337,87.321,87.263,10.3202]
[1771165822241,3.91280337,87.321,87.264,3.90924459]
[1771165822740,3.91280337,87.339,87.275,3.90924459]
[1771165823741,3.91280337,87.339,87.277,3.90924459]
[1771165825345,17.0,87.34,87.291,3.90924459]
[1771165825545,20.91280337,87.34,87.291,3.90924459]
[1771165825746,3.91280337,87.339,87.291,3.90924459]
[1771165826837,3.91280337,87.339,87.293,3.90924459]
[1771165828041,3.91280337,87.339,87.249,91.44]
[1771165828042,3.91280337,87.339,87.295,3.90924459]
[1771165829740,3.91280337,87.339,87.256,3.90924459]
[1771165830137,3.91280337,87.339,87.299,10.316]
[1771165830343,3.91280337,87.339,87.299,14.22524459]
[1771165830538,3.91280337,87.339,87.299,3.90924459]
[1771165830742,3.91280337,87.339,87.284,3.90924459]
[1771165830939,3.91280337,87.339,87.239,3.90924459]
[1771165831151,17.0,87.33,87.239,3.90924459]
[1771165831448,3.91280337,87.325,87.259,3.90924459]
[1771165832048,17.0,87.33,87.259,3.90924459]
[1771165832049,3.91280337,87.317,87.261,10.3205]
[1771165832249,3.91280337,87.317,87.22,91.42]
[1771165832250,3.91280337,87.317,87.262,3.90924459]
[1771165833561,17.0,87.33,87.247,3.90924459]
[1771165833562,3.91280337,87.314,87.247,3.90924459]
[1771165834258,3.91280337,87.314,87.254,10.3214]
[1771165834658,3.91280337,87.314,87.247,3.90924459]
[1771165834859,3.91280337,87.314,87.26,3.90924459]
[1771165835251,3.91280337,87.314,87.262,10.3204]
[1771165835458,3.91280337,87.314,87.26,3.90924459]
[1771165835658,3.91280337,87.329,87.26,3.90924459]
[1771165835864,17.0,87.33,87.26,3.90924459]
[1771165836063,3.91280337,87.343,87.293,10.3167]
[1771165836659,195.63280337,87.357,87.305,10.3153]
[1771165836864,3.91280337,87.356,87.305,10.3153]
[1771165838967,3.91280337,87.356,87.259,91.42]
[1771165838968,3.91280337,87.347,87.294,10.3165]
[1771165839266,3.91280337,87.347,87.285,3.90924459]
[1771165840068,3.91280337,87.347,87.297,10.3162]
[1771165840372,3.91280337,87.347,87.297,3.90924459]
[1771165840870,3.91280337,87.347,87.295,10.3164]
[1771165841165,3.91280337,87.347,87.282,3.90924459]
[1771165841865,3.91280337,87.347,87.3,10.3159]
[1771165842367,3.91280337,87.347,87.308,10.3149]
[1771165843466,3.91280337,87.347,87.297,10.3163]
[1771165846268,3.91280337,87.347,87.297,14.27032766]
[1771165846468,3.91280337,87.347,87.302,10.3156]
[1771165847566,3.91280337,87.347,87.302,14.26962766]
[1771165847765,3.91280337,87.347,87.302,3.95402766]
[1771165848068,3.91280337,87.347,87.292,10.3168]
[1771165848570,3.91280337,87.347,87.297,10.3162]
[1771165848771,3.91280337,87.347,87.298,3.95402766]
[1771165849769,3.91280337,87.347,87.302,10.3156]
[1771165850569,3.91280337,87.347,87.302,14.26962766]
[1771165850764,3.91280337,87.347,87.305,14.26932766]
[1771165851566,3.76442834,87.377,87.309,3.95402766]
[1771165852671,3.76442834,87.377,87.33,3.95402766]
[1771165852872,3.76442834,87.375,87.314,3.95402766]
[1771165854271,3.76442834,87.373,87.316,10.314]
[1771165854569,3.76442834,87.373,87.316,14.26802766]
[1771165854774,3.76442834,87.373,87.317,3.95402766]
[1771165855979,3.76442834,87.371,87.317,3.95402766]
[1771165856380,3.76442834,87.371,87.319,10.3136]
[1771165856381,10.3077,87.37,87.319,10.3136]
[1771165856576,3.76442834,87.369,87.319,10.3136]
[1771165857280,3.76442834,87.366,87.308,10.3149]
[1771165857577,3.76442834,87.366,87.309,3.95402766]
[1771165857771,10.3086,87.363,87.312,3.95402766]
[1771165858173,10.3086,87.363,87.274,10.60973554]
[1771165858174,3.76442834,87.362,87.275,3.95402766]
[1771165859880,3.76442834,87.359,87.301,10.3157]
[1771165860775,3.76442834,87.355,87.301,10.3157]
[1771165861179,3.76442834,87.355,87.303,14.26952766]
[1771165861383,3.76442834,87.368,87.304,3.95402766]
[1771165862379,3.76442834,87.357,87.304,3.95402766]
[1771165863481,3.76442834,87.357,87.307,3.95402766]
[1771165863679,114.18,87.385,87.307,3.95402766]
[1771165863680,3.76442834,87.379,87.307,3.95402766]
[1771165864182,3.76442834,87.367,87.307,3.95402766]
[1771165865888,3.76442834,87.365,87.312,10.3145]
[1771165866789,3.76442834,87.365,87.319,3.95402766]
[1771165866983,10.3071,87.376,87.319,3.95402766]
[1771165867180,3.76442834,87.391,87.319,3.95402766]
[1771165868989,3.76442834,87.39,87.338,10.3114]
[1771165869684,3.76442834,87.39,87.338,14.26542766]
[1771165869892,10.3054,87.389,87.338,14.26542766]
[1771165870287,3.76442834,87.388,87.338,14.26542766]
[1771165871792,3.76442834,87.388,87.339,3.95402766]
[1771165871992,10.3042,87.4,87.339,3.95402766]
[1771165872193,3.76442834,87.399,87.339,3.95402766]
[1771165872492,3.76442834,87.413,87.356,3.95402766]
[1771165872787,3.76442834,87.413,87.318,34.43]
[1771165872788,3.76442834,87.413,87.332,3.95402766]
[1771165872992,1.9914391,87.444,87.34,10.3111]
[1771165872993,3.76442834,87.395,87.34,10.3111]
[1771165873393,3.76442834,87.395,87.332,3.95402766]
[1771165873697,3.76442834,87.395,87.355,10.3094]
[1771165873891,10.3026,87.414,87.356,3.79873816]
[1771165873892,3.57437508,87.413,87.356,3.79873816]
[1771165874091,91.36,87.429,87.356,3.79873816]
[1771165874092,3.57437508,87.429,87.356,3.79873816]
[1771165874394,3.57437508,87.445,87.383,3.79873816]
[1771165874694,3.57437508,87.445,87.356,3.79873816]
[1771165874997,3.57437508,87.415,87.356,3.79873816]
[1771165875693,3.57437508,87.414,87.333,3.79873816]
[1771165875993,3.57437508,87.414,87.318,3.79873816]
[1771165876192,3.57437508,87.411,87.318,3.79873816]
[1771165876401,3.57437508,87.405,87.33,3.79873816]
[1771165877090,3.57437508,87.405,87.337,3.79873816]
[1771165877699,3.57437508,87.405,87.348,3.79873816]
[1771165878602,10.3022,87.417,87.348,3.79873816]
[1771165878896,3.57437508,87.416,87.348,3.79873816]
[1771165879494,3.57437508,87.416,87.36,10.3088]
[1771165879695,10.301,87.427,87.361,3.79873816]
[1771165880195,3.57437508,87.432,87.376,3.79873816]
[1771165881099,3.57437508,87.432,87.378,3.79873816]
[1771165881797,3.57437508,87.432,87.384,10.306]
[1771165882399,3.57437508,87.432,87.378,3.79873816]
[1771165883594,3.57437508,87.432,87.38,10.3064]
[1771165883800,3.57437508,87.432,87.381,3.79873816]
[1771165884200,3.57437508,87.447,87.382,3.79873816]
[1771165884795,3.57437508,87.447,87.384,3.79873816]
[1771165885701,3.57437508,87.447,87.392,10.305]
[1771165885901,3.57437508,87.447,87.393,3.79873816]
[1771165886805,3.57437508,87.447,87.395,10.3046]
[1771165887209,3.57437508,87.447,87.396,3.79873816]
[1771165887503,3.57437508,87.447,87.35,91.32]
[1771165887504,3.57437508,87.447,87.398,3.79873816]
[1771165887892,10.2972,87.46,87.398,3.79873816]
[1771165888098,3.57437508,87.462,87.412,3.79873816]
[1771165888896,10.296,87.47,87.417,3.79873816]
[1771165889597,13.87047508,87.468,87.418,10.3019]
[1771165890004,13.87047508,87.468,87.377,91.32]
[1771165890005,3.57437508,87.486,87.419,3.79873816]
[1771165891304,3.57437508,87.503,87.442,3.79873816]
[1771165892004,7.187e-05,87.487,87.458,3.79873816]
[1771165892907,7.187e-05,87.487,87.449,10.2983]
[1771165893401,7.187e-05,87.487,87.45,3.79873816]
[1771165894609,7.187e-05,87.487,87.405,91.28]
[1771165894610,7.187e-05,87.487,87.445,10.2988]
[1771165895203,3.57444695,87.487,87.405,91.28]
[1771165895405,3.57437508,87.461,87.403,3.79873816]
[1771165895807,3.57437508,87.461,87.425,10.3012]
[1771165896108,3.57437508,87.461,87.36,55.0476]
[1771165896109,3.57437508,87.461,87.361,3.79873816]
[1771165896704,3.57437508,87.449,87.384,3.79873816]
[1771165897207,3.57437508,87.44,87.39,10.3052]
[1771165897597,3.57437508,87.44,87.39,14.10393816]
[1771165898704,3.57437508,87.44,87.395,10.3046]
[1771165899802,3.57437508,87.44,87.391,3.79873816]
[1771165900010,3.57437508,87.44,87.345,3.79873816]
[1771165900306,3.57437508,87.44,87.385,10.3059]
[1771165900704,10.2997,87.438,87.379,3.79873816]
[1771165901010,13.87407508,87.438,87.379,3.79873816]
[1771165901307,10.3003,87.433,87.379,3.79873816]
[1771165902112,3.57437508,87.427,87.336,3.79873816]
[1771165903612,103.64,87.449,87.35,14.23433294]
[1771165903613,3.57159907,87.412,87.35,14.23433294]
[1771165903810,3.57159907,87.412,87.351,3.92433294]
[1771165904312,34.43,87.448,87.353,14.23393294]
[1771165904313,3.57159907,87.407,87.353,14.23393294]
[1771165904906,3.57159907,87.407,87.356,10.3092]
[1771165906014,3.57159907,87.407,87.357,3.92433294]
[1771165906211,3.57159907,87.407,87.358,10.3091]
[1771165906415,3.57159907,87.407,87.358,14.23343294]
[1771165906607,3.57159907,87.407,87.359,3.92433294]
[1771165907116,3.57159907,87.407,87.362,10.3086]
[1771165907614,10.3022,87.417,87.363,3.92433294]
[1771165907810,3.57159907,87.414,87.363,3.92433294]
[1771165908013,3.57159907,87.414,87.352,10.3097]
[1771165908619,3.57159907,87.408,87.352,10.3097]
[1771165909116,3.57159907,87.395,87.348,3.92433294]
[1771165909615,3.57159907,87.417,87.36,10.3088]
[1771165910608,3.57159907,87.404,87.348,14.23453294]
[1771165911015,3.57159907,87.404,87.31,3.92433294]
[1771165911512,3.57159907,87.393,87.338,10.3114]
[1771165911711,3.57159907,87.393,87.334,3.92433294]
[1771165911925,3.57159907,87.393,87.318,3.92433294]
[1771165912817,3.57159907,87.382,87.328,10.3126]
[1771165914015,3.57159907,87.382,87.333,10.312]
[1771165914415,3.57159907,87.371,87.288,3.92433294]
[1771165914615,3.57159907,87.371,87.305,3.92433294]
[1771165915420,3.57159907,87.359,87.305,3.92433294]
[1771165916113,3.57159907,87.359,87.307,3.92433294]
[1771165916314,3.57159907,87.396,87.307,3.92433294]
[1771165917923,13.87979907,87.366,87.308,14.23923294]
[1771165918119,13.87979907,87.366,87.309,3.92433294]
[1771165918423,3.57159907,87.365,87.309,3.92433294]
[1771165918822,20.6078,87.403,87.309,3.92433294]
[1771165918823,3.57159907,87.362,87.309,3.92433294]
[1771165919715,10.3098,87.352,87.309,3.92433294]
[1771165920113,3.57159907,87.402,87.309,3.92433294]
[1771165920319,3.57159907,87.389,87.309,3.92433294]
[1771165920525,3.57159907,87.425,87.309,3.92433294]
[1771165920727,3.57159907,87.425,87.311,3.92433294]
[1771165921229,3.57159907,87.407,87.351,3.92433294]
[1771165921429,20.5964,87.451,87.351,3.92433294]
[1771165921430,3.57159907,87.445,87.351,3.92433294]
[1771165921623,3.57159907,87.445,87.302,160.4669]
[1771165921624,10.3002,87.434,87.384,10.306]
[1771165922016,3.57159907,87.445,87.385,3.92433294]
[1771165922624,3.57159907,87.445,87.389,3.92433294]
[1771165922925,3.57159907,87.466,87.389,3.92433294]
[1771165923622,3.57159907,87.466,87.407,14.22753294]
[1771165924022,3.57159907,87.466,87.408,3.92433294]
[1771165925017,3.57159907,87.483,87.414,3.92433294]
[1771165925526,3.57159907,87.483,87.364,21.25609751]
[1771165925527,3.57159907,87.506,87.44,3.92433294]
[1771165926525,3.57159907,87.523,87.442,3.92433294]
[1771165927123,3.57159907,87.51,87.446,3.92433294]
[1771165927319,3.57159907,87.51,87.407,3.92433294]
[1771165927824,3.57159907,87.474,87.407,3.92433294]
[1771165929029,3.57159907,87.474,87.409,3.92433294]
[1771165929530,3.57159907,87.474,87.391,3.92433294]
[1771165929829,10.297,87.461,87.393,3.92433294]
[1771165930026,3.57159907,87.474,87.393,3.92433294]
[1771165930229,3.57159907,87.514,87.393,3.92433294]
[1771165930419,3.57159907,87.514,87.395,3.92433294]
[1771165931529,3.57159907,87.499,87.422,3.92433294]
[1771165932323,3.57159907,87.483,87.411,10.3028]
[1771165932524,3.57159907,87.483,87.405,3.92433294]
[1771165932823,3.57159907,87.483,87.344,160.3886]
[1771165932824,3.57159907,87.458,87.389,3.92433294]
[1771165933730,3.57159907,87.458,87.392,3.66116263]
[1771165934425,91.28,87.496,87.392,3.66116263]
[1771165934426,3.57609066,87.494,87.392,3.66116263]
[1771165935426,3.57609066,87.472,87.392,3.66116263]
[1771165936830,3.57609066,87.469,87.403,10.3037]
[1771165937033,3.57609066,87.469,87.403,13.96486263]
[1771165937333,3.57609066,87.469,87.404,3.66116263]
[1771165937731,91.28,87.501,87.407,10.3033]
[1771165937732,3.57609066,87.467,87.407,10.3033]
[1771165938826,3.57609066,87.461,87.404,3.66116263]
[1771165939429,3.57609066,87.458,87.404,3.66116263]
[1771165940528,3.57609066,87.476,87.407,3.66116263]
[1771165941434,3.57609066,87.462,87.407,3.66116263]
[1771165942339,91.28,87.488,87.361,91.28]
[1771165942340,3.57609066,87.457,87.392,10.305]
[1771165942639,3.57609066,87.457,87.393,3.66116263]
[1771165943837,3.57609066,87.454,87.394,10.3048]
[1771165944040,3.57609066,87.454,87.376,3.66116263]
[1771165944635,10.2981,87.451,87.376,3.66116263]
[1771165945036,3.57609066,87.454,87.376,3.66116263]
[1771165945237,10.2992,87.442,87.384,3.66116263]
[1771165945634,3.57609066,87.454,87.384,3.66116263]
[1771165945835,3.57609066,87.442,87.384,3.66116263]
[1771165946036,3.57609066,87.442,87.345,3.66116263]
[1771165946641,3.57609066,87.43,87.362,3.66116263]
[1771165948536,3.57609066,87.415,87.362,3.66116263]
[1771165949744,13.87849066,87.415,87.362,3.66116263]
[1771165950241,34.43,87.444,87.362,3.66116263]
[1771165950242,10.3012,87.426,87.375,10.3071]
[1771165950548,438.77243073,87.457,87.376,3.66116263]
[1771165951241,10.2979,87.453,87.396,13.96566263]
[1771165951839,10.2991,87.443,87.396,3.66116263]
[1771165954145,3.57609066,87.451,87.396,3.66116263]
[1771165955741,3.57609066,87.448,87.394,10.3048]
[1771165955939,3.57609066,87.448,87.384,10.306]
[1771165956548,3.57609066,87.445,87.389,10.3054]
[1771165956746,438.77243073,87.457,87.39,3.66116263]
[1771165957049,438.77243073,87.457,87.411,3.66116263]
[1771165957647,10.2952,87.476,87.411,3.66116263]
[1771165958748,10.2952,87.476,87.426,10.301]
[1771165958954,3.57609066,87.477,87.426,10.301]
[1771165959157,7.187e-05,87.487,87.411,3.66116263]
[1771165960150,7.187e-05,87.487,87.446,10.2986]
[1771165960448,7.187e-05,87.487,87.435,3.66116263]
[1771165960655,10.2962,87.467,87.418,13.96306263]
[1771165961555,13.87269066,87.465,87.409,10.303]
[1771165961745,3.57609066,87.464,87.409,10.303]
[1771165961946,10.2969,87.462,87.409,10.303]
[1771165962149,3.57609066,87.461,87.403,3.66116263]
[1771165962652,3.57609066,87.447,87.387,13.96676263]
[1771165962850,3.57609066,87.447,87.387,3.66116263]
[1771165963251,91.28,87.468,87.397,3.86297983]
[1771165963252,3.65199082,87.463,87.397,3.86297983]
[1771165964758,3.65199082,87.463,87.418,10.3019]
[1771165965264,3.65199082,87.46,87.397,3.86297983]
[1771165966964,3.65199082,87.457,87.406,10.3034]
[1771165970868,3.65199082,87.454,87.406,10.3034]
[1771165971066,3.65199082,87.454,87.397,3.86297983]
[1771165971466,10.298,87.453,87.397,3.86297983]
[1771165971667,3.65199082,87.454,87.408,10.3031]
[1771165972069,3.65199082,87.454,87.408,14.16607983]
[1771165972963,14.10883925,87.494,87.368,20.6159]
[1771165972964,3.65199082,87.469,87.416,3.86297983]
[1771165973461,3.65199082,87.469,87.428,10.3007]
[1771165973662,3.65199082,87.469,87.401,3.86297983]
[1771165974868,13.94989082,87.454,87.402,10.3039]
[1771165975270,10.299,87.444,87.392,10.305]
[1771165976164,3.65199082,87.443,87.392,10.305]
[1771165976966,3.65199082,87.443,87.398,10.3043]
[1771165977772,45.07912665,87.479,87.386,10.66241571]
[1771165977773,10.2975,87.457,87.401,3.86297983]
[1771165978767,10.2975,87.457,87.408,10.3031]
[1771165979165,3.65199082,87.456,87.408,10.3031]
[1771165980571,10.2987,87.447,87.401,3.86297983]
[1771165981770,10.2995,87.44,87.396,10.3045]
[1771165981971,3.65199082,87.439,87.396,10.3045]
[1771165984077,3.65199082,87.439,87.359,91.28]
[1771165984078,3.65199082,87.439,87.358,10.66241571]
[1771165984279,34.43,87.432,87.351,3.86297983]
[1771165984479,3.65199082,87.429,87.351,3.86297983]
[1771165985075,3.65199082,87.407,87.352,10.3097]
[1771165985281,3.65199082,87.425,87.353,3.86297983]
[1771165986077,3.65199082,87.425,87.379,10.3065]
[1771165990787,10.3013,87.424,87.379,10.3065]
[1771165990981,3.65199082,87.423,87.37,10.3076]
[1771165991182,3.65199082,87.423,87.348,3.86297983]
[1771165991582,3.65199082,87.413,87.348,3.86297983]
[1771165992585,3.65199082,87.411,87.36,10.3087]
[1771165992782,160.2695,87.41,87.299,3.86297983]
[1771165993083,3.65199082,87.411,87.256,25.75085122]
[1771165993084,160.3397,87.372,87.256,25.75085122]
[1771165993275,194.8403,87.333,87.154,160.7394]
[1771165993479,160.4214,87.327,87.158,91.3]
[1771165993687,10.3182,87.281,87.159,34.43]
[1771165993883,34.43,87.279,87.177,10.3304]
[1771165994089,34.43,87.277,87.14,91.3]
[1771165994284,10.323,87.24,87.158,1.99512685]
[1771165994493,34.43,87.238,87.081,160.8735]
[1771165994783,10.3251,87.223,87.138,1.99569892]
[1771165994985,12.71085901,87.222,87.131,10.3359]
[1771165995190,10.3257,87.218,87.132,12.61409531]
[1771165995586,12.71085901,87.217,87.139,12.61409531]
[1771165995791,23.03675901,87.216,87.139,12.61409531]
[1771165995983,12.71085901,87.215,87.139,12.61409531]
[1771165996184,12.71085901,87.238,87.139,12.61409531]
[1771165996382,117.0,87.247,87.139,12.61409531]
[1771165996585,104.03085901,87.246,87.139,12.61409531]
[1771165996781,12.71085901,87.245,87.139,12.61409531]
[1771165996983,10.3265,87.211,87.139,12.61409531]
[1771165997893,10.3249,87.225,87.139,12.61409531]
[1771165999391,10.3264,87.212,87.139,12.61409531]
[1771166001492,10.3247,87.226,87.14,12.76012488]
[1771166003497,10.3263,87.213,87.14,12.76012488]
[1771166008399,10.3248,87.225,87.145,12.71302752]